[Event "Live Chess"]
[Site "Chess.com"]
[Date "2023.05.20"]
[Round "-"]
[White "YrrriKharkiv"]
[Black "seuen"]
[Result "1-0"]
[WhiteElo "2142"]
[BlackElo "1142"]
[TimeControl "300"]
[EndTime "9:30:23 PDT"]
[Termination "YrrriKharkiv won by resignation"]

1. d4 {[%clk 0:04:53.2]} 1... Nf6 {[%clk 0:04:58.2]} 2. Nf3 {[%clk 0:04:52.5]}
2... g6 {[%clk 0:04:57.4]} 3. c4 {[%clk 0:04:51.8]} 3... Bg7 {[%clk 0:04:55.8]}
4. Nc3 {[%clk 0:04:51.1]} 4... d5 {[%clk 0:04:55.3]} 5. Qb3 {[%clk 0:04:49.2]}
5... c6 {[%clk 0:04:48.2]} 6. Bg5 {[%clk 0:04:45.9]} 6... O-O {[%clk 0:04:47.1]}
7. Bxf6 {[%clk 0:04:44.6]} 7... Bxf6 {[%clk 0:04:46.2]} 8. cxd5 {[%clk
0:04:43.6]} 8... cxd5 {[%clk 0:04:45.3]} 9. Qxd5 {[%clk 0:04:42.6]} 9... Qxd5
{[%clk 0:04:41.6]} 10. Nxd5 {[%clk 0:04:41]} 10... Bg7 {[%clk 0:04:41.5]} 11.
Nxe7+ {[%clk 0:04:39.6]} 11... Kh8 {[%clk 0:04:40.2]} 12. Nd5 {[%clk 0:04:34.2]}
12... Nc6 {[%clk 0:04:36.6]} 13. e3 {[%clk 0:04:32.2]} 13... Be6 {[%clk
0:04:35.9]} 14. Nc7 {[%clk 0:04:29.4]} 14... Rac8 {[%clk 0:04:30.7]} 15. Nxe6
{[%clk 0:04:28.3]} 15... fxe6 {[%clk 0:04:30.6]} 16. Rc1 {[%clk 0:04:21]} 16...
Rc7 {[%clk 0:04:20.9]} 17. Bd3 {[%clk 0:04:13.7]} 17... Rfc8 {[%clk 0:04:17.7]}
18. Kd2 {[%clk 0:04:08.9]} 18... a6 {[%clk 0:04:01.2]} 19. Rc2 {[%clk
0:04:01.3]} 19... Nb4 {[%clk 0:03:56.6]} 20. Rxc7 {[%clk 0:03:58.4]} 20... Rxc7
{[%clk 0:03:55.9]} 21. a3 {[%clk 0:03:56.8]} 21... Nd5 {[%clk 0:03:47.9]} 22.
Rc1 {[%clk 0:03:24.8]} 22... Rf7 {[%clk 0:03:35.1]} 23. Rc8+ {[%clk 0:03:18.5]}
23... Bf8 {[%clk 0:03:33.8]} 24. Ke2 {[%clk 0:03:10.5]} 24... Kg7 {[%clk
0:03:20.3]} 25. Ne5 {[%clk 0:02:54.4]} 25... Rc7 {[%clk 0:02:57]} 26. Rxc7+
{[%clk 0:02:51.3]} 26... Nxc7 {[%clk 0:02:56.9]} 27. Be4 {[%clk 0:02:41.3]}
27... b6 {[%clk 0:02:53.3]} 28. Nd7 {[%clk 0:02:36.3]} 28... b5 {[%clk
0:02:14.4]} 29. Nxf8 {[%clk 0:02:29.2]} 29... Kxf8 {[%clk 0:02:14.3]} 30. f4
{[%clk 0:02:17.2]} 30... h6 {[%clk 0:02:12.5]} 31. Bxg6 {[%clk 0:02:15.7]} 31...
Kg7 {[%clk 0:02:11.4]} 32. Be4 {[%clk 0:02:14.6]} 32... Kf6 {[%clk 0:02:10.9]}
33. g4 {[%clk 0:02:12.3]} 33... Ne8 {[%clk 0:02:06.5]} 34. h4 {[%clk 0:02:09.6]}
34... Nc7 {[%clk 0:02:04]} 35. g5+ {[%clk 0:02:08.5]} 35... hxg5 {[%clk
0:02:03.1]} 36. hxg5+ {[%clk 0:02:07.8]} 36... Kg7 {[%clk 0:02:01.7]} 37. Kf3
{[%clk 0:02:00.1]} 37... a5 {[%clk 0:01:51.3]} 38. Kg4 {[%clk 0:01:57.3]} 38...
b4 {[%clk 0:01:50.2]} 39. axb4 {[%clk 0:01:55.8]} 39... axb4 {[%clk 0:01:50.1]}
40. Bc6 {[%clk 0:01:50.9]} 40... Na8 {[%clk 0:01:34.2]} 41. Bxa8 {[%clk
0:01:49.1]} 1-0

[Event "Live Chess"]
[Site "Chess.com"]
[Date "2023.05.20"]
[Round "-"]
[White "Singapourfeuj"]
[Black "domrobson"]
[Result "0-1"]
[WhiteElo "2290"]
[BlackElo "1741"]
[TimeControl "300"]
[EndTime "9:30:25 PDT"]
[Termination "domrobson won by resignation"]

1. d4 {[%clk 0:04:51.4]} 1... Nf6 {[%clk 0:04:58.5]} 2. Nf3 {[%clk 0:04:44.4]}
2... e6 {[%clk 0:04:49.7]} 3. g3 {[%clk 0:04:43.3]} 3... d5 {[%clk 0:04:48.9]}
4. Bg2 {[%clk 0:04:42.1]} 4... c6 {[%clk 0:04:48.3]} 5. O-O {[%clk 0:04:41.4]}
5... Bd6 {[%clk 0:04:46.5]} 6. c4 {[%clk 0:04:40.5]} 6... Nbd7 {[%clk
0:04:45.6]} 7. Nc3 {[%clk 0:04:39.4]} 7... O-O {[%clk 0:04:44.4]} 8. b3 {[%clk
0:04:38.3]} 8... b6 {[%clk 0:04:43.4]} 9. Bg5 {[%clk 0:04:36.8]} 9... Be7 {[%clk
0:04:41.9]} 10. Qc2 {[%clk 0:04:35.8]} 10... Bb7 {[%clk 0:04:40.7]} 11. Bxf6
{[%clk 0:04:33.2]} 11... Nxf6 {[%clk 0:04:37.9]} 12. Ne5 {[%clk 0:04:32.4]}
12... Rc8 {[%clk 0:04:34.4]} 13. cxd5 {[%clk 0:04:30.9]} 13... cxd5 {[%clk
0:04:33]} 14. Qd3 {[%clk 0:04:30]} 14... a5 {[%clk 0:04:30.5]} 15. Rac1 {[%clk
0:04:28.9]} 15... Nd7 {[%clk 0:04:23.4]} 16. Nb5 {[%clk 0:04:23.7]} 16... Nxe5
{[%clk 0:04:21.8]} 17. dxe5 {[%clk 0:04:22.8]} 17... Rc5 {[%clk 0:04:16.1]} 18.
Nd4 {[%clk 0:04:16.4]} 18... Qd7 {[%clk 0:04:09.8]} 19. e3 {[%clk 0:04:14.4]}
19... Rfc8 {[%clk 0:04:08.1]} 20. Qd2 {[%clk 0:04:13.5]} 20... Ba6 {[%clk
0:03:57.9]} 21. Rfd1 {[%clk 0:04:12]} 21... R8c7 {[%clk 0:03:52.8]} 22. f4
{[%clk 0:04:06.7]} 22... Qc8 {[%clk 0:03:51.6]} 23. Rxc5 {[%clk 0:04:05]} 23...
Rxc5 {[%clk 0:03:46.5]} 24. f5 {[%clk 0:04:02.1]} 24... Rc3 {[%clk 0:03:37]} 25.
fxe6 {[%clk 0:03:59.6]} 25... fxe6 {[%clk 0:03:34.2]} 26. Nxe6 {[%clk
0:03:58.5]} 26... Rd3 {[%clk 0:03:30.5]} 27. Qxd3 {[%clk 0:03:53.1]} 27... Bxd3
{[%clk 0:03:28.3]} 28. Rxd3 {[%clk 0:03:52.1]} 28... Qc1+ {[%clk 0:03:24.2]} 29.
Bf1 {[%clk 0:03:51.2]} 29... Bc5 {[%clk 0:03:15.9]} 30. Nxc5 {[%clk 0:03:47.3]}
30... Qxc5 {[%clk 0:03:13.7]} 31. a4 {[%clk 0:03:42]} 31... Kf8 {[%clk
0:03:10.1]} 32. Bg2 {[%clk 0:03:39.2]} 32... Qc1+ {[%clk 0:03:07]} 33. Bf1
{[%clk 0:03:38.2]} 33... Ke7 {[%clk 0:03:03.7]} 34. h4 {[%clk 0:03:37.1]} 34...
Ke6 {[%clk 0:03:02.6]} 35. Kg2 {[%clk 0:03:32.5]} 35... Qc2+ {[%clk 0:02:57.9]}
36. Kg1 {[%clk 0:03:31.1]} 36... Kxe5 {[%clk 0:02:55.3]} 37. Rd4 {[%clk
0:03:23.1]} 37... Qxb3 {[%clk 0:02:44]} 38. Bg2 {[%clk 0:03:21.3]} 38... Qxe3+
{[%clk 0:02:42.1]} 0-1

[Event "Live Chess"]
[Site "Chess.com"]
[Date "2023.05.20"]
[Round "-"]
[White "McSlash1"]
[Black "seabuck"]
[Result "1-0"]
[WhiteElo "2071"]
[BlackElo "1824"]
[TimeControl "300"]
[EndTime "9:30:27 PDT"]
[Termination "McSlash1 won by checkmate"]

1. e4 {[%clk 0:04:58.9]} 1... e6 {[%clk 0:04:57.4]} 2. d4 {[%clk 0:04:57.7]}
2... d5 {[%clk 0:04:56.8]} 3. Nd2 {[%clk 0:04:57]} 3... c5 {[%clk 0:04:54.3]} 4.
dxc5 {[%clk 0:04:56.1]} 4... Bxc5 {[%clk 0:04:52.2]} 5. Bd3 {[%clk 0:04:55.6]}
5... Nc6 {[%clk 0:04:44.6]} 6. c3 {[%clk 0:04:54]} 6... Nf6 {[%clk 0:04:38.5]}
7. Qe2 {[%clk 0:04:52.5]} 7... O-O {[%clk 0:04:18.1]} 8. Ngf3 {[%clk 0:04:49.1]}
8... dxe4 {[%clk 0:04:10.4]} 9. Nxe4 {[%clk 0:04:49]} 9... Be7 {[%clk
0:03:57.3]} 10. O-O {[%clk 0:04:46.3]} 10... b6 {[%clk 0:03:55.9]} 11. Nxf6+
{[%clk 0:04:44.2]} 11... Bxf6 {[%clk 0:03:54.5]} 12. Qe4 {[%clk 0:04:43.5]}
12... g6 {[%clk 0:03:31.7]} 13. Qxc6 {[%clk 0:04:42.2]} 13... Qxd3 {[%clk
0:03:26]} 14. Qxa8 {[%clk 0:04:40.8]} 14... Ba6 {[%clk 0:03:25.1]} 15. Qxf8+
{[%clk 0:04:17.3]} 15... Kxf8 {[%clk 0:03:23.5]} 16. Bh6+ {[%clk 0:04:16.7]}
16... Ke7 {[%clk 0:03:16.2]} 17. Rfd1 {[%clk 0:04:10.7]} 17... Qc2 {[%clk
0:03:11.4]} 18. Rd2 {[%clk 0:04:08.1]} 18... Qf5 {[%clk 0:03:09.7]} 19. Rad1
{[%clk 0:04:06.8]} 19... Bb5 {[%clk 0:03:01.3]} 20. Rd8 {[%clk 0:03:41.7]} 20...
g5 {[%clk 0:02:55.9]} 21. Bf8# {[%clk 0:03:39.8]} 1-0

[Event "Live Chess"]
[Site "Chess.com"]
[Date "2023.05.20"]
[Round "-"]
[White "fgreen"]
[Black "defenderalist"]
[Result "1/2-1/2"]
[WhiteElo "1509"]
[BlackElo "1592"]
[TimeControl "300"]
[EndTime "9:30:39 PDT"]
[Termination "Game drawn by repetition"]

1. d4 {[%clk 0:04:58.1]} 1... Nf6 {[%clk 0:04:57]} 2. Bg5 {[%clk 0:04:56.2]}
2... e6 {[%clk 0:04:55.3]} 3. e3 {[%clk 0:04:51.2]} 3... Be7 {[%clk 0:04:54.4]}
4. Nf3 {[%clk 0:04:49.9]} 4... d5 {[%clk 0:04:53.8]} 5. c4 {[%clk 0:04:48]} 5...
O-O {[%clk 0:04:52.1]} 6. Nc3 {[%clk 0:04:44.3]} 6... h6 {[%clk 0:04:45.8]} 7.
Bxf6 {[%clk 0:04:42.6]} 7... Bxf6 {[%clk 0:04:44.7]} 8. Bd3 {[%clk 0:04:38.3]}
8... dxc4 {[%clk 0:04:43]} 9. Bxc4 {[%clk 0:04:37.1]} 9... b6 {[%clk 0:04:40.6]}
10. O-O {[%clk 0:04:35.2]} 10... Bb7 {[%clk 0:04:40.1]} 11. Re1 {[%clk
0:04:20.9]} 11... Nd7 {[%clk 0:04:38.8]} 12. e4 {[%clk 0:04:10.5]} 12... c5
{[%clk 0:04:35.7]} 13. d5 {[%clk 0:03:48.8]} 13... exd5 {[%clk 0:04:27.4]} 14.
Nxd5 {[%clk 0:03:34.4]} 14... Bxb2 {[%clk 0:04:16.8]} 15. Rb1 {[%clk 0:03:32.9]}
15... Bf6 {[%clk 0:03:31.4]} 16. Qb3 {[%clk 0:03:31.1]} 16... Ne5 {[%clk
0:03:23.9]} 17. Nxe5 {[%clk 0:03:25.4]} 17... Bxe5 {[%clk 0:03:19.4]} 18. Rbd1
{[%clk 0:03:22.5]} 18... Bxd5 {[%clk 0:03:08]} 19. Bxd5 {[%clk 0:03:17.7]} 19...
Qh4 {[%clk 0:02:42.4]} 20. Bxa8 {[%clk 0:03:09.7]} 20... Qxh2+ {[%clk
0:02:38.6]} 21. Kf1 {[%clk 0:03:08.5]} 21... Rxa8 {[%clk 0:02:36.6]} 22. Rd7
{[%clk 0:02:57.5]} 22... Qh1+ {[%clk 0:02:34.8]} 23. Ke2 {[%clk 0:02:56.2]}
23... Qxg2 {[%clk 0:02:31.5]} 24. Qxf7+ {[%clk 0:02:51.8]} 24... Kh8 {[%clk
0:02:29.4]} 25. Red1 {[%clk 0:02:34.4]} 25... Qxe4+ {[%clk 0:02:25.6]} 26. Kf1
{[%clk 0:02:19.8]} 26... Qh1+ {[%clk 0:01:54.5]} 27. Ke2 {[%clk 0:02:18.6]}
27... Qe4+ {[%clk 0:01:52.7]} 28. Kf1 {[%clk 0:02:17.2]} 28... Qh1+ {[%clk
0:01:51.5]} 29. Ke2 {[%clk 0:02:16.1]} 29... Qe4+ {[%clk 0:01:50.2]} 1/2-1/2

[Event "Live Chess"]
[Site "Chess.com"]
[Date "2023.05.20"]
[Round "-"]
[White "LL220284LL"]
[Black "apl_trainer"]
[Result "1-0"]
[WhiteElo "2407"]
[BlackElo "1521"]
[TimeControl "300"]
[EndTime "9:30:43 PDT"]
[Termination "LL220284LL won on time"]

1. g3 {[%clk 0:04:58.7]} 1... c5 {[%clk 0:04:57.9]} 2. Bg2 {[%clk 0:04:58.6]}
2... Nc6 {[%clk 0:04:56.6]} 3. b3 {[%clk 0:04:56]} 3... d5 {[%clk 0:04:54.6]} 4.
Bb2 {[%clk 0:04:55.9]} 4... e5 {[%clk 0:04:52.9]} 5. e3 {[%clk 0:04:55]} 5... f6
{[%clk 0:04:51.5]} 6. d3 {[%clk 0:04:53.6]} 6... Be6 {[%clk 0:04:50.1]} 7. Nd2
{[%clk 0:04:53]} 7... Qd7 {[%clk 0:04:48.3]} 8. h3 {[%clk 0:04:51.1]} 8... Nge7
{[%clk 0:04:46.4]} 9. Ne2 {[%clk 0:04:50.6]} 9... Nc8 {[%clk 0:04:43.6]} 10. f4
{[%clk 0:04:50.1]} 10... Bd6 {[%clk 0:04:40.2]} 11. g4 {[%clk 0:04:48.7]} 11...
O-O {[%clk 0:04:38.2]} 12. O-O {[%clk 0:04:47.5]} 12... Nb6 {[%clk 0:04:26]} 13.
Qe1 {[%clk 0:04:43.8]} 13... d4 {[%clk 0:04:20.4]} 14. e4 {[%clk 0:04:36.7]}
14... exf4 {[%clk 0:04:15.3]} 15. Nxf4 {[%clk 0:04:35.5]} 15... Bf7 {[%clk
0:04:11.5]} 16. a4 {[%clk 0:04:26.1]} 16... Qc7 {[%clk 0:04:00.5]} 17. Ne2
{[%clk 0:04:22.7]} 17... Nd7 {[%clk 0:03:56.3]} 18. Nc4 {[%clk 0:04:19.9]} 18...
Nde5 {[%clk 0:03:52.5]} 19. Nxd6 {[%clk 0:04:17.7]} 19... Qxd6 {[%clk
0:03:51.3]} 20. Bc1 {[%clk 0:04:16.8]} 20... Nb4 {[%clk 0:03:48.4]} 21. Qd1
{[%clk 0:04:15.5]} 21... Ng6 {[%clk 0:03:37.8]} 22. Nf4 {[%clk 0:04:11.8]} 22...
Qe7 {[%clk 0:03:32.6]} 23. Nxg6 {[%clk 0:04:09.4]} 23... hxg6 {[%clk 0:03:31.3]}
24. Bf4 {[%clk 0:04:08.9]} 24... g5 {[%clk 0:03:27.9]} 25. Bg3 {[%clk 0:04:08]}
25... Nc6 {[%clk 0:03:26.7]} 26. Qd2 {[%clk 0:04:06.4]} 26... Ne5 {[%clk
0:03:24.2]} 27. Rf2 {[%clk 0:04:05.5]} 27... Rac8 {[%clk 0:03:03.2]} 28. Raf1
{[%clk 0:04:03.8]} 28... Bg6 {[%clk 0:02:56.8]} 29. Qe2 {[%clk 0:04:01.8]} 29...
b6 {[%clk 0:02:54.7]} 30. h4 {[%clk 0:04:00.2]} 30... gxh4 {[%clk 0:02:41.7]}
31. Bxh4 {[%clk 0:04:00.1]} 31... a6 {[%clk 0:02:40]} 32. Bh3 {[%clk 0:03:58.7]}
32... Qd7 {[%clk 0:02:04.9]} 33. Kh2 {[%clk 0:03:52.7]} 33... Qd6 {[%clk
0:01:45]} 34. Bg3 {[%clk 0:03:51]} 34... Rc7 {[%clk 0:01:15.4]} 35. g5 {[%clk
0:03:49.6]} 35... Rcf7 {[%clk 0:01:07.6]} 36. gxf6 {[%clk 0:03:38.4]} 36... Rxf6
{[%clk 0:01:06.1]} 37. Rxf6 {[%clk 0:03:34.9]} 37... Rxf6 {[%clk 0:01:03.3]} 38.
Rxf6 {[%clk 0:03:34.2]} 38... Qxf6 {[%clk 0:00:58.5]} 39. Bc8 {[%clk 0:03:32.7]}
39... Nf3+ {[%clk 0:00:53]} 40. Kg2 {[%clk 0:03:30.9]} 40... Bh5 {[%clk
0:00:51.6]} 41. Qf2 {[%clk 0:03:29.3]} 41... Qg5 {[%clk 0:00:46.5]} 42. Bxa6
{[%clk 0:03:10.6]} 42... Bg4 {[%clk 0:00:19.9]} 43. Bc4+ {[%clk 0:03:07.7]}
43... Kh7 {[%clk 0:00:09.6]} 44. Qf1 {[%clk 0:03:03.7]} 44... Qh5 {[%clk
0:00:08.1]} 45. Qh1 {[%clk 0:02:59.5]} 45... Kg6 {[%clk 0:00:05.6]} 46. Qxh5+
{[%clk 0:02:57.7]} 46... Kxh5 {[%clk 0:00:04]} 47. Bc7 {[%clk 0:02:57.1]} 47...
Ne1+ {[%clk 0:00:01.6]} 48. Kg3 {[%clk 0:02:56.6]} 1-0

[Event "Live Chess"]
[Site "Chess.com"]
[Date "2023.05.20"]
[Round "-"]
[White "LaupMiths"]
[Black "Ferrarifan27"]
[Result "1-0"]
[WhiteElo "1825"]
[BlackElo "2107"]
[TimeControl "300"]
[EndTime "9:30:45 PDT"]
[Termination "LaupMiths won on time"]

1. Nf3 {[%clk 0:04:55.3]} 1... d5 {[%clk 0:04:57]} 2. d4 {[%clk 0:04:53.4]} 2...
Nf6 {[%clk 0:04:55.2]} 3. g3 {[%clk 0:04:51.3]} 3... e6 {[%clk 0:04:53.1]} 4.
Bg2 {[%clk 0:04:50.3]} 4... Be7 {[%clk 0:04:51.9]} 5. O-O {[%clk 0:04:48.6]}
5... O-O {[%clk 0:04:51.3]} 6. b3 {[%clk 0:04:46.9]} 6... c6 {[%clk 0:04:50.8]}
7. Bb2 {[%clk 0:04:45.6]} 7... Nbd7 {[%clk 0:04:50.4]} 8. c4 {[%clk 0:04:43.9]}
8... b6 {[%clk 0:04:48.9]} 9. Nbd2 {[%clk 0:04:42]} 9... Bb7 {[%clk 0:04:45.3]}
10. Qc2 {[%clk 0:04:40.6]} 10... Rc8 {[%clk 0:04:41.8]} 11. Rfe1 {[%clk
0:04:38.4]} 11... b5 {[%clk 0:04:38.5]} 12. c5 {[%clk 0:04:35.5]} 12... Qa5
{[%clk 0:04:35.4]} 13. e4 {[%clk 0:04:32.6]} 13... dxe4 {[%clk 0:04:33.1]} 14.
Nxe4 {[%clk 0:04:31.4]} 14... Nxe4 {[%clk 0:04:32.3]} 15. Qxe4 {[%clk
0:04:29.9]} 15... Nf6 {[%clk 0:04:31.9]} 16. Qe5 {[%clk 0:04:26.9]} 16... Nd5
{[%clk 0:04:29.4]} 17. a3 {[%clk 0:04:20.2]} 17... Bf6 {[%clk 0:04:27.5]} 18.
Qe4 {[%clk 0:04:18.4]} 18... b4 {[%clk 0:04:14.4]} 19. a4 {[%clk 0:04:16.7]}
19... Ba6 {[%clk 0:04:10.7]} 20. Rac1 {[%clk 0:04:10.8]} 20... Qc7 {[%clk
0:04:07.9]} 21. Nd2 {[%clk 0:04:08.8]} 21... g6 {[%clk 0:04:02.8]} 22. Nc4
{[%clk 0:04:06.8]} 22... Bxc4 {[%clk 0:03:58.4]} 23. bxc4 {[%clk 0:03:56.2]}
23... Ne7 {[%clk 0:03:56.4]} 24. Bh3 {[%clk 0:03:38.9]} 24... a5 {[%clk
0:03:49.5]} 25. Re3 {[%clk 0:03:24.5]} 25... Nf5 {[%clk 0:03:47.7]} 26. Rf3
{[%clk 0:03:20.1]} 26... Bg7 {[%clk 0:03:42.8]} 27. g4 {[%clk 0:03:03]} 27...
Ne7 {[%clk 0:03:39.6]} 28. Rd1 {[%clk 0:02:53.5]} 28... Rcd8 {[%clk 0:03:37.1]}
29. Bc1 {[%clk 0:02:50]} 29... Qd7 {[%clk 0:03:27.1]} 30. Rfd3 {[%clk
0:02:46.1]} 30... Rfe8 {[%clk 0:03:03.8]} 31. Bf4 {[%clk 0:02:43.4]} 31... Nc8
{[%clk 0:02:56.3]} 32. Bg2 {[%clk 0:02:37]} 32... Na7 {[%clk 0:02:49.2]} 33. Be5
{[%clk 0:02:29.3]} 33... f6 {[%clk 0:02:44.1]} 34. Bd6 {[%clk 0:02:28.1]} 34...
f5 {[%clk 0:02:42.4]} 35. Qf4 {[%clk 0:02:15.2]} 35... fxg4 {[%clk 0:02:29]} 36.
h3 {[%clk 0:02:05.5]} 36... gxh3 {[%clk 0:02:26.5]} 37. Rxh3 {[%clk 0:02:03.5]}
37... Nc8 {[%clk 0:02:22.3]} 38. Qh4 {[%clk 0:01:52.9]} 38... Nxd6 {[%clk
0:02:17.8]} 39. Qxh7+ {[%clk 0:01:50.8]} 39... Kf8 {[%clk 0:02:05.6]} 40. cxd6
{[%clk 0:01:48.6]} 40... Bf6 {[%clk 0:01:39.2]} 41. Qxg6 {[%clk 0:01:31.6]}
41... Qg7 {[%clk 0:01:37.7]} 42. Qxg7+ {[%clk 0:01:21.3]} 42... Kxg7 {[%clk
0:01:37.6]} 43. c5 {[%clk 0:01:18.5]} 43... Rb8 {[%clk 0:01:20.3]} 44. Bxc6
{[%clk 0:01:16.5]} 44... Rh8 {[%clk 0:01:13.2]} 45. Rxh8 {[%clk 0:01:13.7]}
45... Kxh8 {[%clk 0:01:13.1]} 46. Bb5 {[%clk 0:01:11.4]} 46... b3 {[%clk
0:01:09.1]} 47. Rb1 {[%clk 0:01:08.3]} 47... Bxd4 {[%clk 0:01:07.4]} 48. c6
{[%clk 0:01:07.3]} 48... Rg8+ {[%clk 0:01:00.8]} 49. Kf1 {[%clk 0:01:05]} 49...
Rf8 {[%clk 0:00:57.3]} 50. Rxb3 {[%clk 0:01:03.2]} 50... Bxf2 {[%clk 0:00:51.7]}
51. Ke2 {[%clk 0:01:02.2]} 51... Bc5 {[%clk 0:00:47.6]} 52. Rd3 {[%clk
0:00:58.5]} 52... Bb6 {[%clk 0:00:25.3]} 53. Rg3 {[%clk 0:00:46.8]} 53... Rd8
{[%clk 0:00:22.1]} 54. d7 {[%clk 0:00:44.3]} 54... Bc7 {[%clk 0:00:20.5]} 55.
Rg4 {[%clk 0:00:39.3]} 55... e5 {[%clk 0:00:18.8]} 56. Kd3 {[%clk 0:00:38.2]}
56... Kh7 {[%clk 0:00:17.4]} 57. Ke4 {[%clk 0:00:36.8]} 57... Kh8 {[%clk
0:00:16.2]} 58. Kd5 {[%clk 0:00:35.8]} 58... Rf8 {[%clk 0:00:12.8]} 59. Ke6
{[%clk 0:00:34.3]} 59... Bd8 {[%clk 0:00:10.5]} 60. Kxe5 {[%clk 0:00:33.3]}
60... Bc7+ {[%clk 0:00:07.7]} 61. Ke6 {[%clk 0:00:31.8]} 61... Bd8 {[%clk
0:00:07.2]} 62. Kd5 {[%clk 0:00:21.3]} 62... Rf6 {[%clk 0:00:06.2]} 63. Re4
{[%clk 0:00:19.5]} 63... Rf5+ {[%clk 0:00:05.3]} 64. Kc4 {[%clk 0:00:16.3]}
64... Rf8 {[%clk 0:00:01.9]} 65. Re8 {[%clk 0:00:15.3]} 65... Kg7 {[%clk
0:00:01.6]} 66. Rxf8 {[%clk 0:00:13]} 66... Kxf8 {[%clk 0:00:01.5]} 67. Kd5
{[%clk 0:00:11.9]} 67... Bc7 {[%clk 0:00:00.8]} 68. Ke6 {[%clk 0:00:10.9]} 1-0

[Event "Live Chess"]
[Site "Chess.com"]
[Date "2023.05.20"]
[Round "-"]
[White "onemoretime1975"]
[Black "KING_BOBBB"]
[Result "1-0"]
[WhiteElo "1970"]
[BlackElo "543"]
[TimeControl "300"]
[EndTime "9:30:48 PDT"]
[Termination "onemoretime1975 won by resignation"]

1. e4 {[%clk 0:04:56.4]} 1... d5 {[%clk 0:04:59.7]} 2. exd5 {[%clk 0:04:53.5]}
2... Qxd5 {[%clk 0:04:59.6]} 3. Nf3 {[%clk 0:04:50.8]} 3... Qa5 {[%clk
0:04:57.1]} 4. c3 {[%clk 0:04:46.8]} 4... Qa6 {[%clk 0:04:54.6]} 5. Bxa6 {[%clk
0:04:43.8]} 5... bxa6 {[%clk 0:04:52.1]} 6. d4 {[%clk 0:04:42.2]} 6... c5 {[%clk
0:04:50.1]} 7. O-O {[%clk 0:04:37.2]} 7... Nc6 {[%clk 0:04:50]} 8. dxc5 {[%clk
0:04:32.8]} 8... Bf5 {[%clk 0:04:49.9]} 9. Nd4 {[%clk 0:04:28.9]} 9... e6 {[%clk
0:04:49.8]} 10. Nxc6 {[%clk 0:04:26.8]} 10... Nf6 {[%clk 0:04:49.7]} 11. Qa4
{[%clk 0:04:22.9]} 11... Bd6 {[%clk 0:04:49.6]} 1-0

[Event "Live Chess"]
[Site "Chess.com"]
[Date "2023.05.20"]
[Round "-"]
[White "BearFromUkraine"]
[Black "SirEntrails"]
[Result "1-0"]
[WhiteElo "1193"]
[BlackElo "504"]
[TimeControl "300"]
[EndTime "9:30:50 PDT"]
[Termination "BearFromUkraine won by checkmate"]

1. e4 {[%clk 0:04:56.7]} 1... d5 {[%clk 0:04:55.2]} 2. exd5 {[%clk 0:04:55.1]}
2... Nf6 {[%clk 0:04:54.7]} 3. Nc3 {[%clk 0:04:53.7]} 3... Nxd5 {[%clk
0:04:53.5]} 4. Nxd5 {[%clk 0:04:53.1]} 4... Qxd5 {[%clk 0:04:53.1]} 5. Nf3
{[%clk 0:04:49.8]} 5... Qe4+ {[%clk 0:04:45.4]} 6. Be2 {[%clk 0:04:44.3]} 6...
Bg4 {[%clk 0:04:41.7]} 7. O-O {[%clk 0:04:42.5]} 7... Bxf3 {[%clk 0:04:36.2]} 8.
Bxf3 {[%clk 0:04:38.5]} 8... Qg6 {[%clk 0:04:33.3]} 9. d3 {[%clk 0:04:30.4]}
9... Nc6 {[%clk 0:04:27]} 10. b3 {[%clk 0:04:25.8]} 10... O-O-O {[%clk
0:04:23.2]} 11. Qd2 {[%clk 0:04:11.5]} 11... b6 {[%clk 0:04:22.6]} 12. Be4
{[%clk 0:04:05.8]} 12... Qg4 {[%clk 0:04:13.3]} 13. Bxc6 {[%clk 0:04:01.4]}
13... e6 {[%clk 0:03:56.3]} 14. Bb2 {[%clk 0:03:51.1]} 14... f6 {[%clk
0:03:48.3]} 15. Rfe1 {[%clk 0:03:34.5]} 15... e5 {[%clk 0:03:43]} 16. Qe2 {[%clk
0:03:33.1]} 16... Qh4 {[%clk 0:03:27.9]} 17. d4 {[%clk 0:03:30.1]} 17... exd4
{[%clk 0:03:26.5]} 18. Qa6+ {[%clk 0:03:28.2]} 18... Kb8 {[%clk 0:03:23.6]} 19.
Qb7# {[%clk 0:03:26.9]} 1-0

[Event "Live Chess"]
[Site "Chess.com"]
[Date "2023.05.20"]
[Round "-"]
[White "MaximKhimchenko"]
[Black "thrithik"]
[Result "1-0"]
[WhiteElo "1378"]
[BlackElo "488"]
[TimeControl "300"]
[EndTime "9:30:52 PDT"]
[Termination "MaximKhimchenko won by checkmate"]

1. e4 {[%clk 0:04:53]} 1... Nf6 {[%clk 0:04:59.5]} 2. e5 {[%clk 0:04:52.9]} 2...
d6 {[%clk 0:04:57.5]} 3. exf6 {[%clk 0:04:51.8]} 3... exf6 {[%clk 0:04:55.5]} 4.
Nf3 {[%clk 0:04:51.6]} 4... Qe7+ {[%clk 0:04:54.3]} 5. Be2 {[%clk 0:04:51.5]}
5... Qe5 {[%clk 0:04:45.8]} 6. O-O {[%clk 0:04:51.4]} 6... Qh5 {[%clk
0:04:40.4]} 7. Nd4 {[%clk 0:04:48.3]} 7... Be7 {[%clk 0:04:40.1]} 8. Bxh5 {[%clk
0:04:46.8]} 8... g5 {[%clk 0:04:37.6]} 9. Re1 {[%clk 0:04:41.4]} 9... Rg8 {[%clk
0:04:35.8]} 10. Qe2 {[%clk 0:04:40.4]} 10... Rg6 {[%clk 0:04:29.4]} 11. Qxe7#
{[%clk 0:04:38.5]} 1-0

[Event "Live Chess"]
[Site "Chess.com"]
[Date "2023.05.20"]
[Round "-"]
[White "Bob2pen"]
[Black "ZackirtyChess"]
[Result "1-0"]
[WhiteElo "1817"]
[BlackElo "1147"]
[TimeControl "300"]
[EndTime "9:30:55 PDT"]
[Termination "Bob2pen won by checkmate"]

1. c4 {[%clk 0:04:54.8]} 1... e5 {[%clk 0:04:57.9]} 2. g3 {[%clk 0:04:53.8]}
2... Nc6 {[%clk 0:04:53.5]} 3. Bg2 {[%clk 0:04:52.5]} 3... Nf6 {[%clk
0:04:48.6]} 4. Nc3 {[%clk 0:04:50.9]} 4... Bb4 {[%clk 0:04:44.1]} 5. Nf3 {[%clk
0:04:42.3]} 5... d5 {[%clk 0:04:38.6]} 6. cxd5 {[%clk 0:04:36.5]} 6... Nxd5
{[%clk 0:04:38]} 7. O-O {[%clk 0:04:35.4]} 7... Nxc3 {[%clk 0:04:36.4]} 8. bxc3
{[%clk 0:04:33.8]} 8... Bc5 {[%clk 0:04:35.1]} 9. a4 {[%clk 0:04:22.8]} 9... e4
{[%clk 0:04:24.7]} 10. Ne1 {[%clk 0:04:20]} 10... e3 {[%clk 0:04:18.7]} 11. fxe3
{[%clk 0:04:08.7]} 11... Bxe3+ {[%clk 0:04:17.3]} 12. Kh1 {[%clk 0:04:00.4]}
12... Be6 {[%clk 0:04:03.2]} 13. Nd3 {[%clk 0:03:54.6]} 13... Bb6 {[%clk
0:03:55.2]} 14. Ba3 {[%clk 0:03:52.5]} 14... Qd7 {[%clk 0:03:46.4]} 15. Nf4
{[%clk 0:03:49.7]} 15... O-O-O {[%clk 0:03:41.1]} 16. d4 {[%clk 0:03:46.4]}
16... Bc4 {[%clk 0:03:33.8]} 17. Qc2 {[%clk 0:03:29.1]} 17... Na5 {[%clk
0:03:27.5]} 18. Bb4 {[%clk 0:03:22.5]} 18... Bb3 {[%clk 0:03:22.4]} 19. Qe4
{[%clk 0:03:19.2]} 19... Bxa4 {[%clk 0:03:16.7]} 20. Bxa5 {[%clk 0:03:16.4]}
20... Bxa5 {[%clk 0:03:14.3]} 21. Qxb7# {[%clk 0:03:14.9]} 1-0